[Event "Schack-SM 2023: Mastarklassen"]
[Site "Helsingborg Arena, Mellersta Stenbocksgatan 14, Helsingborg, Sweden"]
[Date "2023.07.06"]
[Round "6.4"]
[White "Frisk, Ellinor"]
[Black "Nilsson, Patrik 1978"]
[Result "1-0"]
[TimeControl "90 minutes for 40 moves + 30 minutes for the rest of games + 30 seconds per move from move one."]
[WhiteTitle "WIM"]
[WhiteElo "2178"]
[BlackElo "2167"]

1. Nf3 {[%clk 01:30:56]} {[%emt 00:00:03]} f5 {[%clk 01:30:46]} {[%emt
00:00:14]} 2. d3 {[%clk 01:31:20]} {[%emt 00:00:08]} Nf6 {[%clk 01:30:52]}
{[%emt 00:00:21]} 3. e4 {[%clk 01:31:46]} {[%emt 00:00:05]} d6 {[%clk
01:30:49]} {[%emt 00:00:33]} 4. exf5 {[%clk 01:31:51]} {[%emt 00:00:25]} Bxf5
{[%clk 01:30:36]} {[%emt 00:00:42]} 5. d4 {[%clk 01:32:16]} {[%emt 00:00:06]}
Qd7 {[%clk 01:29:55]} {[%emt 00:01:11]} 6. Bd3 {[%clk 01:30:07]} {[%emt
00:02:39]} Nc6 {[%clk 01:29:09]} {[%emt 00:01:16]} 7. Bxf5 {[%clk 01:26:29]}
{[%emt 00:04:09]} Qxf5 {[%clk 01:29:23]} {[%emt 00:00:15]} 8. O-O {[%clk
01:26:56]} {[%emt 00:00:03]} O-O-O {[%clk 01:28:09]} {[%emt 00:01:44]} 9. c4
{[%clk 01:26:14]} {[%emt 00:01:14]} e5 {[%clk 01:25:11]} {[%emt 00:03:26]} 10.
d5 {[%clk 01:23:20]} {[%emt 00:03:25]} Ne7 {[%clk 01:24:45]} {[%emt 00:00:56]}
11. Ng5 {[%clk 01:16:25]} {[%emt 00:07:25]} Rd7 {[%clk 01:09:54]} {[%emt
00:15:20]} 12. Nc3 {[%clk 01:12:29]} {[%emt 00:04:27]} Kb8 {[%clk 00:57:28]}
{[%emt 00:12:55]} 13. Qa4 {[%clk 01:08:23]} {[%emt 00:04:36]} Nc8 {[%clk
00:50:09]} {[%emt 00:07:49]} 14. Be3 {[%clk 01:07:31]} {[%emt 00:01:22]} Ne8
{[%clk 00:45:36]} {[%emt 00:05:02]} 15. Ne6 {[%clk 01:05:08]} {[%emt 00:02:54]}
Qf7 {[%clk 00:43:24]} {[%emt 00:02:42]} 16. Nb5 {[%clk 00:55:26]} {[%emt
00:10:12]} a6 {[%clk 00:33:50]} {[%emt 00:10:05]} 17. Nc3 {[%clk 00:54:56]}
{[%emt 00:01:00]} g6 {[%clk 00:31:30]} {[%emt 00:02:49]} 18. b4 {[%clk
00:51:18]} {[%emt 00:04:08]} Ng7 {[%clk 00:21:35]} {[%emt 00:10:25]} 19. Ng5
{[%clk 00:39:19]} {[%emt 00:12:29]} Qe7 {[%clk 00:13:43]} {[%emt 00:08:22]} 20.
b5 {[%clk 00:39:45]} {[%emt 00:00:05]} axb5 {[%clk 00:13:38]} {[%emt 00:00:36]}
21. Nxb5 {[%clk 00:32:27]} {[%emt 00:07:47]} c5 {[%clk 00:13:50]} {[%emt
00:00:16]} 22. Rab1 {[%clk 00:28:24]} {[%emt 00:04:34]} b6 {[%clk 00:11:29]}
{[%emt 00:02:51]} 23. Qa6 {[%clk 00:27:15]} {[%emt 00:01:39]} h6 {[%clk
00:11:00]} {[%emt 00:00:59]} 24. Ne4 {[%clk 00:26:34]} {[%emt 00:01:11]} Ne8
{[%clk 00:09:27]} {[%emt 00:02:02]} 25. a4 {[%clk 00:22:04]} {[%emt 00:05:01]}
Rb7 {[%clk 00:09:14]} {[%emt 00:00:43]} 26. a5 {[%clk 00:19:45]} {[%emt
00:02:50]} bxa5 {[%clk 00:08:46]} {[%emt 00:00:57]} 27. Qxa5 {[%clk 00:19:36]}
{[%emt 00:00:39]} Nc7 {[%clk 00:07:59]} {[%emt 00:01:17]} 28. Nbxd6 {[%clk
00:14:21]} {[%emt 00:05:46]} Nxd6 {[%clk 00:07:57]} {[%emt 00:00:31]} 29. Bxc5
{[%clk 00:14:42]} {[%emt 00:00:10]} Qd8 {[%clk 00:06:11]} {[%emt 00:02:16]} 30.
Qa7+ {[%clk 00:13:37]} {[%emt 00:01:34]} Kc8 {[%clk 00:06:25]} {[%emt
00:00:16]} 31. Nxd6+ {[%clk 00:14:00]} {[%emt 00:00:07]} Bxd6 {[%clk 00:06:42]}
{[%emt 00:00:13]} 32. Qxb7+ {[%clk 00:14:22]} {[%emt 00:00:09]} Kd7 {[%clk
00:07:01]} {[%emt 00:00:11]} 33. Bxd6 {[%clk 00:13:40]} {[%emt 00:01:12]} Kxd6
{[%clk 00:07:22]} {[%emt 00:00:09]} 34. Qc6+ {[%clk 00:14:02]} {[%emt
00:00:08]} 1-0

[Event "Schack-SM 2023: Veteran-SM 65+"]
[Site "Helsingborg Arena, Mellersta Stenbocksgatan 14, Helsingborg, Sweden"]
[Date "2023.07.06"]
[Round "6.2"]
[White "Hedin, Gunnar"]
[Black "Franzen Hogberg, Thomas"]
[Result "1/2-1/2"]
[TimeControl "90 minutes for 40 moves + 30 minutes for the rest of games + 30 seconds per move from move one."]
[WhiteElo "2093"]
[BlackElo "1998"]

1. d4 {[%clk 01:30:55]} {[%emt 00:00:05]} Nf6 {[%clk 01:30:42]} {[%emt
00:00:18]} 2. c4 {[%clk 01:31:06]} {[%emt 00:00:19]} e6 {[%clk 01:30:55]}
{[%emt 00:00:18]} 3. Nc3 {[%clk 01:31:08]} {[%emt 00:00:28]} Bb4 {[%clk
01:31:15]} {[%emt 00:00:09]} 4. e3 {[%clk 01:30:01]} {[%emt 00:01:38]} O-O
{[%clk 01:30:47]} {[%emt 00:00:57]} 5. Bd3 {[%clk 01:29:53]} {[%emt 00:00:38]}
c5 {[%clk 01:30:08]} {[%emt 00:01:10]} 6. Nge2 {[%clk 01:28:29]} {[%emt
00:01:53]} d5 {[%clk 01:26:35]} {[%emt 00:04:03]} 7. cxd5 {[%clk 01:28:07]}
{[%emt 00:00:53]} Nxd5 {[%clk 01:26:48]} {[%emt 00:00:16]} 8. O-O {[%clk
01:27:06]} {[%emt 00:01:31]} cxd4 {[%clk 01:18:07]} {[%emt 00:09:11]} 9. exd4
{[%clk 01:26:58]} {[%emt 00:00:38]} Nf6 {[%clk 01:08:57]} {[%emt 00:09:40]} 10.
Bg5 {[%clk 01:23:31]} {[%emt 00:03:56]} Be7 {[%clk 01:05:55]} {[%emt 00:03:33]}
11. Bc2 {[%clk 01:17:18]} {[%emt 00:06:43]} Nc6 {[%clk 01:03:49]} {[%emt
00:02:36]} 12. a3 {[%clk 01:03:06]} {[%emt 00:14:43]} Qa5 {[%clk 01:01:52]}
{[%emt 00:02:26]} 13. Bxf6 {[%emt 00:12:14]} Bxf6 {[%clk 01:01:55]} {[%emt
00:00:24]} 14. Ne4 {[%clk 00:50:52]} {[%emt 00:01:03]} Qd8 {[%clk 01:00:21]}
{[%emt 00:02:03]} 15. Qd3 {[%clk 00:49:39]} {[%emt 00:01:44]} g6 {[%clk
00:57:52]} {[%emt 00:02:59]} 16. Nxf6+ {[%clk 00:49:51]} {[%emt 00:00:18]} Qxf6
{[%clk 00:58:15]} {[%emt 00:00:07]} 17. Rfd1 {[%clk 00:48:45]} {[%emt
00:01:37]} Rd8 {[%clk 00:58:22]} {[%emt 00:00:21]} 18. Qe3 {[%clk 00:46:43]}
{[%emt 00:02:33]} Ne7 {[%clk 00:51:31]} {[%emt 00:07:21]} 19. Nc3 {[%clk
00:43:09]} {[%emt 00:04:04]} Bd7 {[%clk 00:42:45]} {[%emt 00:09:17]} 20. Be4
{[%clk 00:30:06]} {[%emt 00:13:32]} Bc6 {[%clk 00:40:02]} {[%emt 00:03:13]} 21.
Bxc6 {[%clk 00:28:41]} {[%emt 00:01:55]} Nxc6 {[%clk 00:35:53]} {[%emt
00:04:39]} 22. d5 {[%clk 00:14:22]} {[%emt 00:14:49]} exd5 {[%clk 00:32:38]}
{[%emt 00:03:45]} 23. Nxd5 {[%clk 00:14:19]} {[%emt 00:00:33]} Qxb2 {[%clk
00:31:42]} {[%emt 00:01:25]} 24. Rac1 {[%clk 00:14:14]} {[%emt 00:00:36]} Qe5
{[%clk 00:30:56]} {[%emt 00:01:16]} 25. Qxe5 {[%clk 00:11:09]} {[%emt
00:03:34]} Nxe5 {[%clk 00:30:25]} {[%emt 00:01:01]} 26. Rc7 {[%clk 00:11:27]}
{[%emt 00:00:13]} Kg7 {[%clk 00:26:40]} {[%emt 00:04:15]} 27. Rxb7 {[%clk
00:11:30]} {[%emt 00:00:28]} Rac8 {[%clk 00:26:26]} {[%emt 00:00:43]} 28. f4
{[%emt 00:01:18]} Ng4 {[%clk 00:25:07]} {[%emt 00:01:47]} 29. Rbb1 {[%clk
00:09:25]} {[%emt 00:01:49]} Rc5 {[%clk 00:21:03]} {[%emt 00:04:34]} 30. Ne3
{[%clk 00:08:53]} {[%emt 00:01:02]} Rxd1+ {[%clk 00:21:26]} {[%emt 00:00:07]}
31. Nxd1 {[%clk 00:09:22]} {[%emt 00:00:02]} Nf6 {[%clk 00:21:33]} {[%emt
00:00:22]} 32. Kf1 {[%clk 00:06:51]} {[%emt 00:03:01]} Nd5 {[%clk 00:20:24]}
{[%emt 00:01:39]} 33. g3 {[%clk 00:06:34]} {[%emt 00:00:47]} Rc2 {[%clk
00:18:52]} {[%emt 00:02:02]} 34. Rb5 {[%clk 00:05:57]} {[%emt 00:01:08]} Nb6
{[%clk 00:17:55]} {[%emt 00:01:27]} 35. Rb2 {[%clk 00:04:20]} {[%emt 00:02:06]}
Rc1 {[%clk 00:15:42]} {[%emt 00:02:43]} 36. Ke2 {[%clk 00:04:48]} {[%emt
00:00:02]} Nc4 {[%clk 00:15:22]} {[%emt 00:00:50]} 37. Ra2 {[%clk 00:04:31]}
{[%emt 00:00:47]} a5 {[%clk 00:15:15]} {[%emt 00:00:37]} 38. Kd3 {[%clk
00:03:41]} {[%emt 00:01:20]} Rxd1+ {[%clk 00:10:11]} {[%emt 00:05:34]} 39. Kxc4
{[%clk 00:04:05]} {[%emt 00:00:06]} Rb1 {[%clk 00:10:29]} {[%emt 00:00:11]} 40.
Rd2 {[%clk 00:01:41]} {[%emt 00:02:54]} a4 {[%clk 00:08:28]} {[%emt 00:02:32]}
41. Rd3 {[%clk 00:26:08]} {[%emt 00:06:03]} h5 {[%clk 00:34:45]} {[%emt
00:04:12]} 42. Kc5 {[%clk 00:15:28]} {[%emt 00:11:08]} Rb3 {[%clk 00:34:33]}
{[%emt 00:00:44]} 43. Kc4 {[%clk 00:15:52]} {[%emt 00:00:06]} Rb2 {[%clk
00:34:57]} {[%emt 00:00:06]} 44. h4 {[%clk 00:16:06]} {[%emt 00:00:16]} Rb7
{[%emt 00:04:59]} 45. Rd5 1/2-1/2

[Event "Schack-SM 2023: Veteran-SM 50+"]
[Site "Helsingborg Arena, Mellersta Stenbocksgatan 14, Helsingborg, Sweden"]
[Date "2023.07.06"]
[Round "6.2"]
[White "Nilsson, Patrik 1968"]
[Black "Karlsson, Ulf"]
[Result "1/2-1/2"]
[TimeControl "90 minutes for 40 moves + 30 minutes for the rest of games + 30 seconds per move from move one."]
[WhiteElo "1931"]
[BlackElo "1968"]

1. e4 {[%clk 01:30:49]} {[%emt 00:00:09]} c5 {[%clk 01:30:51]} {[%emt
00:00:10]} 2. Nf3 {[%clk 01:31:09]} {[%emt 00:00:09]} Nc6 {[%clk 01:31:12]}
{[%emt 00:00:10]} 3. Nc3 {[%clk 01:31:22]} {[%emt 00:00:18]} e5 {[%clk
01:31:35]} {[%emt 00:00:07]} 4. Bc4 {[%clk 01:31:19]} {[%emt 00:00:32]} Be7
{[%clk 01:31:56]} {[%emt 00:00:09]} 5. d3 {[%clk 01:31:05]} {[%emt 00:00:43]}
d6 {[%clk 01:31:14]} {[%emt 00:01:13]} 6. Nd2 {[%clk 01:30:46]} {[%emt
00:00:49]} Nf6 {[%clk 01:30:53]} {[%emt 00:00:51]} 7. Nf1 {[%clk 01:29:52]}
{[%emt 00:01:23]} O-O {[%clk 01:30:09]} {[%emt 00:01:15]} 8. Bg5 {[%clk
01:28:45]} {[%emt 00:01:35]} Na5 {[%clk 01:30:05]} {[%emt 00:00:36]} 9. Bxf6
{[%clk 01:27:25]} {[%emt 00:01:50]} Bxf6 {[%clk 01:29:48]} {[%emt 00:00:48]} 10.
Ne3 {[%clk 01:27:19]} {[%emt 00:00:35]} Be6 {[%clk 01:27:39]} {[%emt 00:02:39]}
11. Ncd5 {[%clk 01:24:52]} {[%emt 00:02:57]} Bg5 {[%clk 01:26:05]} {[%emt
00:02:03]} 12. O-O {[%clk 01:21:32]} {[%emt 00:03:51]} Qd7 {[%clk 01:21:22]}
{[%emt 00:05:13]} 13. a4 {[%clk 01:15:18]} {[%emt 00:06:44]} Nc6 {[%clk
01:16:32]} {[%emt 00:05:20]} 14. c3 {[%clk 01:11:50]} {[%emt 00:03:57]} Ne7
{[%clk 01:11:55]} {[%emt 00:05:08]} 15. Qh5 {[%clk 01:04:47]} {[%emt 00:07:31]}
Bxe3 {[%clk 01:11:56]} {[%emt 00:00:31]} 16. Nxe3 {[%clk 01:03:14]} {[%emt
00:02:02]} Bxc4 {[%clk 01:02:22]} {[%emt 00:10:04]} 1/2-1/2

[Event "Schack-SM 2023: Sverigemastarklassen"]
[Site "Helsingborg Arena, Mellersta Stenbocksgatan 14, Helsingborg, Sweden"]
[Date "2023.07.06"]
[Round "6.4"]
[White "Hillarp Persson, Tiger"]
[Black "Sivuk, Vitaly"]
[Result "1/2-1/2"]
[TimeControl "90 minutes for 40 moves + 30 minutes for the rest of the game + 30 seconds per move from move one."]
[WhiteTitle "GM"]
[BlackTitle "GM"]
[WhiteElo "2493"]
[BlackElo "2432"]

1. c4 {[%clk 01:30:57]} {[%emt 00:00:02]} e6 {[%clk 01:30:22]} {[%emt
00:00:38]} 2. Nf3 {[%clk 01:29:53]} {[%emt 00:01:34]} d5 {[%clk 01:30:41]}
{[%emt 00:00:10]} 3. d4 {[%clk 01:30:08]} {[%emt 00:00:15]} Nf6 {[%clk
01:31:02]} {[%emt 00:00:09]} 4. g3 {[%clk 01:30:21]} {[%emt 00:00:17]} Bb4+
{[%clk 01:30:05]} {[%emt 00:01:26]} 5. Bd2 {[%clk 01:30:43]} {[%emt 00:00:08]}
Be7 {[%clk 01:30:27]} {[%emt 00:00:08]} 6. Bg2 {[%clk 01:31:07]} {[%emt
00:00:06]} O-O {[%clk 01:30:46]} {[%emt 00:00:11]} 7. O-O {[%clk 01:31:29]}
{[%emt 00:00:09]} c6 {[%clk 01:27:43]} {[%emt 00:03:33]} 8. Qc2 {[%clk
01:30:12]} {[%emt 00:01:48]} b6 {[%clk 01:28:06]} {[%emt 00:00:07]} 9. Bf4
{[%clk 01:25:47]} {[%emt 00:04:55]} Bb7 {[%clk 01:25:52]} {[%emt 00:02:44]} 10.
Rd1 {[%clk 01:24:03]} {[%emt 00:02:14]} Nbd7 {[%clk 01:22:27]} {[%emt
00:03:55]} 11. Nc3 {[%clk 01:21:21]} {[%emt 00:03:13]} dxc4 {[%clk 01:21:46]}
{[%emt 00:01:11]} 12. Nd2 {[%clk 01:21:21]} {[%emt 00:00:30]} Nd5 {[%clk
01:21:19]} {[%emt 00:00:57]} 13. Nxc4 {[%clk 01:21:42]} {[%emt 00:00:09]} Nxf4
{[%clk 01:21:43]} {[%emt 00:00:06]} 14. gxf4 {[%clk 01:22:05]} {[%emt
00:00:08]} Qc7 {[%clk 01:21:52]} {[%emt 00:00:21]} 15. e3 {[%clk 01:22:25]}
{[%emt 00:00:09]} Rad8 {[%clk 01:21:55]} {[%emt 00:00:26]} 16. a3 {[%clk
01:14:57]} {[%emt 00:07:59]} c5 {[%clk 01:21:04]} {[%emt 00:01:20]} 17. d5
{[%clk 01:12:33]} {[%emt 00:02:54]} exd5 {[%clk 01:21:25]} {[%emt 00:00:09]} 18.
Bxd5 {[%clk 01:06:14]} {[%emt 00:06:49]} Nf6 {[%clk 01:20:27]} {[%emt
00:01:27]} 19. Bxb7 {[%clk 01:05:01]} {[%emt 00:01:44]} Qxb7 {[%clk 01:20:52]}
{[%emt 00:00:05]} 20. Rxd8 {[%clk 01:01:05]} {[%emt 00:04:26]} Rxd8 {[%clk
01:21:15]} {[%emt 00:00:06]} 21. Rd1 {[%clk 00:58:16]} {[%emt 00:03:18]} Rxd1+
{[%clk 01:02:06]} {[%emt 00:19:40]} 22. Qxd1 {[%clk 00:57:55]} {[%emt
00:00:52]} b5 {[%clk 01:00:46]} {[%emt 00:01:50]} 23. Qb3 {[%clk 00:41:51]}
{[%emt 00:16:34]} a6 {[%clk 00:59:49]} {[%emt 00:01:27]} 24. a4 {[%clk
00:42:16]} {[%emt 00:00:05]} Ng4 {[%clk 00:43:47]} {[%emt 00:16:32]} 25. h3
{[%clk 00:41:15]} {[%emt 00:01:31]} Qf3 {[%clk 00:31:21]} {[%emt 00:12:55]} 26.
hxg4 {[%clk 00:41:17]} {[%emt 00:00:29]} Qxg4+ {[%clk 00:31:25]} {[%emt
00:00:26]} 27. Kf1 {[%clk 00:41:38]} {[%emt 00:00:09]} Qh3+ {[%clk 00:31:25]}
{[%emt 00:00:31]} 28. Ke2 {[%clk 00:30:15]} {[%emt 00:11:53]} Qg4+ {[%clk
00:31:27]} {[%emt 00:00:28]} 29. Kf1 {[%clk 00:29:26]} {[%emt 00:01:18]} Qh3+
{[%clk 00:31:52]} {[%emt 00:00:05]} 30. Ke2 {[%clk 00:25:36]} {[%emt 00:04:20]}
Qg4+ {[%clk 00:30:36]} {[%emt 00:01:47]} 1/2-1/2

[Event "Schack-SM 2023: Mastarklassen-elit"]
[Site "Helsingborg Arena, Mellersta Stenbocksgatan 14, Helsingborg, Sweden"]
[Date "2023.07.06"]
[Round "6.3"]
[White "Torngren, Gustav"]
[Black "Thorn, Eric"]
[Result "0-1"]
[TimeControl "90 minutes for 40 moves + 30 minutes for the rest of games + 30 seconds per move from move one."]
[WhiteTitle "FM"]
[BlackTitle "FM"]
[WhiteElo "2297"]
[BlackElo "2379"]

1. d4 {[%clk 01:30:58]} {[%emt 00:00:02]} d5 {[%clk 01:30:53]} {[%emt
00:00:07]} 2. c4 {[%clk 01:31:19]} {[%emt 00:00:09]} dxc4 {[%clk 01:31:17]}
{[%emt 00:00:07]} 3. e4 {[%clk 01:31:42]} {[%emt 00:00:08]} b5 {[%clk
01:31:13]} {[%emt 00:00:34]} 4. a4 {[%clk 01:31:51]} {[%emt 00:00:21]} c6
{[%clk 01:31:37]} {[%emt 00:00:05]} 5. axb5 {[%clk 01:32:18]} {[%emt 00:00:04]}
cxb5 {[%clk 01:32:00]} {[%emt 00:00:07]} 6. Nc3 {[%clk 01:32:15]} {[%emt
00:00:32]} Qb6 {[%clk 01:32:24]} {[%emt 00:00:06]} 7. Nd5 {[%clk 01:31:22]}
{[%emt 00:01:21]} Qb7 {[%clk 01:32:30]} {[%emt 00:00:25]} 8. Bf4 {[%clk
01:31:48]} {[%emt 00:00:04]} e5 {[%clk 01:32:52]} {[%emt 00:00:08]} 9. Bxe5
{[%clk 01:32:14]} {[%emt 00:00:04]} Nd7 {[%clk 01:33:15]} {[%emt 00:00:08]} 10.
Bf4 {[%clk 01:32:10]} {[%emt 00:00:34]} Ngf6 {[%clk 01:33:30]} {[%emt
00:00:15]} 11. Nc7+ {[%clk 01:31:59]} {[%emt 00:00:42]} Kd8 {[%clk 01:33:54]}
{[%emt 00:00:05]} 12. Nxa8 {[%clk 01:29:24]} {[%emt 00:03:05]} Qxe4+ {[%clk
01:34:06]} {[%emt 00:00:17]} 13. Ne2 {[%clk 01:28:56]} {[%emt 00:00:58]} Qxa8
{[%clk 01:34:32]} {[%emt 00:00:05]} 14. Nc3 {[%clk 01:29:01]} {[%emt 00:00:25]}
Bb4 {[%clk 01:34:28]} {[%emt 00:00:34]} 15. Be2 {[%clk 01:28:42]} {[%emt
00:00:49]} Qxg2 {[%clk 01:30:03]} {[%emt 00:04:55]} 16. Bf3 {[%clk 01:21:44]}
{[%emt 00:07:28]} Re8+ {[%clk 01:29:51]} {[%emt 00:00:42]} 17. Be5 {[%clk
01:22:03]} {[%emt 00:00:11]} Qh3 {[%clk 01:19:41]} {[%emt 00:10:40]} 18. Qe2
{[%clk 01:07:28]} {[%emt 00:15:05]} Bxc3+ {[%clk 01:14:39]} {[%emt 00:05:31]}
19. bxc3 {[%clk 01:05:58]} {[%emt 00:02:00]} Bb7 {[%clk 01:15:05]} {[%emt
00:00:05]} 20. Bxb7 {[%clk 00:50:45]} {[%emt 00:15:43]} Qxc3+ {[%clk 01:15:20]}
{[%emt 00:00:15]} 21. Kf1 {[%clk 00:50:52]} {[%emt 00:00:23]} Qxa1+ {[%clk
00:54:43]} {[%emt 00:21:06]} 22. Kg2 {[%clk 00:51:21]} {[%emt 00:00:02]} Qxd4
{[%clk 00:53:59]} {[%emt 00:01:14]} 23. Bxd4 {[%clk 00:47:55]} {[%emt
00:03:55]} Rxe2 {[%clk 00:54:20]} {[%emt 00:00:10]} 24. Rb1 {[%clk 00:48:00]}
{[%emt 00:00:23]} Ne8 {[%clk 00:46:08]} {[%emt 00:08:43]} 25. Bf3 {[%clk
00:41:10]} {[%emt 00:07:20]} Ra2 {[%clk 00:32:04]} {[%emt 00:14:34]} 26. Rxb5
{[%clk 00:38:29]} {[%emt 00:03:12]} Nd6 {[%clk 00:26:03]} {[%emt 00:06:30]} 27.
Rd5 {[%clk 00:37:57]} {[%emt 00:01:03]} Ke7 {[%clk 00:23:32]} {[%emt 00:03:00]}
28. Bxg7 {[%clk 00:37:51]} {[%emt 00:00:36]} f6 {[%clk 00:17:48]} {[%emt
00:06:15]} 29. Bh6 {[%clk 00:17:54]} {[%emt 00:20:28]} Ne5 {[%clk 00:16:46]}
{[%emt 00:01:31]} 30. Bh5 {[%clk 00:17:49]} {[%emt 00:00:34]} Ne4 {[%clk
00:09:59]} {[%emt 00:07:17]} 31. Rb5 {[%clk 00:16:41]} {[%emt 00:01:37]} Rxf2+
{[%clk 00:07:23]} {[%emt 00:03:07]} 32. Kh3 {[%clk 00:17:04]} {[%emt 00:00:07]}
c3 {[%clk 00:06:37]} {[%emt 00:01:16]} 33. Rb7+ {[%clk 00:16:17]} {[%emt
00:01:18]} Kd6 {[%clk 00:06:44]} {[%emt 00:00:22]} 34. Bf8+ {[%clk 00:15:42]}
{[%emt 00:01:06]} Kc6 {[%clk 00:06:37]} {[%emt 00:00:36]} 35. Rxa7 {[%clk
00:15:41]} {[%emt 00:00:32]} c2 {[%clk 00:05:11]} {[%emt 00:01:55]} 36. Be8+
{[%clk 00:14:50]} {[%emt 00:01:21]} Kb6 {[%clk 00:04:45]} {[%emt 00:00:57]} 37.
Ra1 {[%clk 00:15:12]} {[%emt 00:00:07]} Rd2 {[%clk 00:03:31]} {[%emt 00:01:44]}
38. Ba4 {[%clk 00:14:48]} {[%emt 00:00:55]} Nc3 {[%clk 00:00:54]} {[%emt
00:03:06]} 39. Bxc2 {[%clk 00:13:03]} {[%emt 00:02:15]} Rxc2 {[%clk 00:01:18]}
{[%emt 00:00:05]} 40. Bg7 {[%clk 00:13:20]} {[%emt 00:00:14]} Rf2 {[%clk
00:00:44]} {[%emt 00:01:04]} 0-1

[Event "Schack-SM 2023: Mastarklassen"]
[Site "Helsingborg Arena, Mellersta Stenbocksgatan 14, Helsingborg, Sweden"]
[Date "2023.07.06"]
[Round "6.5"]
[White "Sundin, Emanuel"]
[Black "Liden, Tommy"]
[Result "1-0"]
[TimeControl "90 minutes for 40 moves + 30 minutes for the rest of games + 30 seconds per move from move one."]
[WhiteElo "2103"]
[BlackElo "2107"]

1. e4 {[%clk 01:30:56]} {[%emt 00:00:04]} c5 {[%clk 01:30:56]} {[%emt
00:00:05]} 2. Nc3 {[%clk 01:30:58]} {[%emt 00:00:28]} d6 {[%clk 01:31:21]}
{[%emt 00:00:05]} 3. d4 {[%clk 01:31:13]} {[%emt 00:00:14]} cxd4 {[%clk
01:31:39]} {[%emt 00:00:13]} 4. Qxd4 {[%clk 01:31:37]} {[%emt 00:00:06]} Nc6
{[%clk 01:31:40]} {[%emt 00:00:29]} 5. Qd2 {[%clk 01:32:00]} {[%emt 00:00:07]}
g6 {[%clk 01:31:28]} {[%emt 00:00:42]} 6. b3 {[%clk 01:32:22]} {[%emt
00:00:07]} Bh6 {[%clk 01:31:41]} {[%emt 00:00:17]} 7. f4 {[%clk 01:32:01]}
{[%emt 00:00:50]} f5 {[%clk 01:31:54]} {[%emt 00:00:18]} 8. Bb2 {[%clk
01:32:03]} {[%emt 00:00:28]} Nf6 {[%clk 01:31:11]} {[%emt 00:01:13]} 9. O-O-O
{[%clk 01:32:04]} {[%emt 00:00:29]} fxe4 {[%clk 01:30:26]} {[%emt 00:01:15]} 10.
Kb1 {[%clk 01:32:10]} {[%emt 00:00:24]} Rf8 {[%clk 01:30:14]} {[%emt 00:00:42]}
11. h3 {[%clk 01:27:59]} {[%emt 00:04:41]} Nd7 {[%clk 01:04:26]} {[%emt
00:26:18]} 12. g3 {[%clk 01:17:14]} {[%emt 00:11:15]} Nc5 {[%clk 01:01:34]}
{[%emt 00:03:22]} 13. Bg2 {[%clk 01:15:32]} {[%emt 00:02:12]} a5 {[%clk
00:53:48]} {[%emt 00:08:16]} 14. Nxe4 {[%clk 01:11:22]} {[%emt 00:04:41]} Nxe4
{[%clk 00:53:52]} {[%emt 00:00:26]} 15. Bxe4 {[%clk 01:11:45]} {[%emt
00:00:07]} a4 {[%clk 00:53:53]} {[%emt 00:00:29]} 16. Rh2 {[%clk 00:58:44]}
{[%emt 00:13:30]} axb3 {[%clk 00:46:54]} {[%emt 00:07:30]} 17. cxb3 {[%clk
00:58:44]} {[%emt 00:00:29]} Be6 {[%clk 00:43:26]} {[%emt 00:03:56]} 18. Re2
{[%clk 00:56:50]} {[%emt 00:02:25]} Qd7 {[%clk 00:32:37]} {[%emt 00:11:20]} 19.
Nf3 {[%clk 00:30:24]} {[%emt 00:26:56]} Rf7 {[%clk 00:30:25]} {[%emt 00:02:41]}
20. Nd4 {[%clk 00:26:23]} {[%emt 00:04:32]} Nxd4 {[%clk 00:27:03]} {[%emt
00:03:52]} 21. Qxd4 {[%clk 00:26:12]} {[%emt 00:00:40]} Bg7 {[%clk 00:26:47]}
{[%emt 00:00:46]} 22. Qb6 {[%clk 00:23:58]} {[%emt 00:02:45]} Bxb2 {[%clk
00:25:04]} {[%emt 00:02:13]} 23. Qxb7 {[%clk 00:19:46]} {[%emt 00:04:42]} Rc8
{[%clk 00:18:15]} {[%emt 00:07:19]} 24. Kxb2 {[%clk 00:17:33]} {[%emt
00:02:43]} Bxh3 {[%clk 00:17:33]} {[%emt 00:01:11]} 25. Rh1 {[%clk 00:15:48]}
{[%emt 00:02:16]} Bf5 {[%emt 00:04:13]} 26. Qxd7+ {[%clk 00:12:57]} {[%emt
00:03:19]} Kxd7 {[%clk 00:13:55]} {[%emt 00:00:26]} 27. a4 {[%clk 00:10:34]}
{[%emt 00:02:54]} e6 {[%clk 00:13:38]} {[%emt 00:00:47]} 28. b4 {[%emt
00:04:59]} Rc4 {[%clk 00:10:54]} {[%emt 00:00:45]} 29. Bxf5 {[%clk 00:08:57]}
{[%emt 00:00:08]} gxf5 {[%clk 00:11:02]} {[%emt 00:00:22]} 30. Kb3 {[%clk
00:09:00]} {[%emt 00:00:26]} Re4 {[%clk 00:10:48]} {[%emt 00:00:44]} 31. Rc2
{[%emt 00:02:47]} Re3+ {[%clk 00:09:35]} {[%emt 00:01:38]} 32. Rc3 {[%clk
00:07:13]} {[%emt 00:00:06]} Rxc3+ {[%clk 00:09:48]} {[%emt 00:00:17]} 33. Kxc3
{[%clk 00:07:42]} Rg7 {[%clk 00:10:03]} {[%emt 00:00:15]} 34. Kc4 {[%clk
00:07:31]} {[%emt 00:00:41]} Kc6 {[%clk 00:09:53]} {[%emt 00:00:41]} 35. b5+
{[%clk 00:07:23]} {[%emt 00:00:37]} Kb6 {[%clk 00:09:02]} {[%emt 00:01:21]} 36.
Kb4 {[%clk 00:07:40]} {[%emt 00:00:13]} Rxg3 {[%clk 00:08:51]} {[%emt
00:00:40]} 37. Rxh7 {[%clk 00:07:37]} {[%emt 00:00:33]} 1-0